bitfinex-derivatives/quotes_SOLF0:USTF0_20250626
["timestamp","ask_amount","ask_price","bid_price","bid_amount"]
[1750901270311,122.67723584,144.04,143.99,3.48219483]
[1750901270611,41.9376,144.05,144.01,6.9392]
[1750901271318,35.0,144.05,144.02,6.9389]
[1750901271616,35.0,144.05,143.99,3.48219483]
[1750901271916,41.9376,144.05,144.01,6.9392]
[1750901273320,35.0,144.05,144.02,6.939]
[1750901274520,41.9376,144.05,144.02,6.939]
[1750901274721,41.9376,144.05,144.01,6.9393]
[1750901277020,35.0,144.05,144.02,6.9389]
[1750901279913,7.19321124,144.07,144.04,6.9379]
[1750901280117,7.19321124,144.07,144.0,35.0]
[1750901280118,2.3167,144.07,144.01,3.48219483]
[1750901280318,35.0,144.08,144.03,3.48219483]
[1750901281319,35.0,144.08,144.01,2.2396]
[1750901281519,35.0,144.08,144.01,5.72179483]
[1750901281728,6.9368,144.07,144.03,6.9382]
[1750901284118,41.9363,144.08,144.03,6.9382]
[1750901284824,41.9363,144.08,144.04,6.938]
[1750901286520,41.9363,144.08,144.05,6.9375]
[1750901286924,6.9363,144.08,144.05,6.9375]
[1750901287220,6.9367,144.07,144.02,3.48219483]
[1750901287917,6.9362,144.08,144.02,3.48219483]
[1750901288624,6.9362,144.08,144.02,8.26609483]
[1750901289317,6.9362,144.08,144.05,6.9375]
[1750901290123,6.9358,144.09,144.05,6.9375]
[1750901290426,6.9358,144.09,144.06,6.9371]
[1750901291329,6.9352,144.1,144.07,6.9364]
[1750901291919,34.8,144.11,144.08,6.9361]
[1750901292125,34.8,144.13,144.08,6.9361]
[1750901292325,5.52204118,144.12,144.08,6.9361]
[1750901292525,34.8,144.13,144.07,6.9364]
[1750901292722,5.52204118,144.12,144.07,6.9364]
[1750901292926,6.9348,144.11,144.07,6.9364]
[1750901294629,6.9348,144.11,144.08,6.9361]
[1750901296233,6.9329,144.15,144.06,3.48219483]
[1750901296432,5.53190306,144.14,144.1,3.48219483]
[1750901296732,125.28435625,144.16,144.1,3.48219483]
[1750901297323,132.21695625,144.16,144.12,6.9339]
[1750901297919,6.9326,144.16,144.12,6.9339]
[1750901298134,6.9326,144.16,144.1,3.48219483]
[1750901298440,41.732,144.17,144.1,3.48219483]
[1750901298622,5.52775823,144.16,144.1,3.48219483]
[1750901298822,6.9323,144.16,144.13,6.9337]
[1750901299027,6.9323,144.16,144.1,3.48219483]
[1750901299727,6.9328,144.15,144.12,6.934]
[1750901300724,6.9324,144.16,144.13,6.9336]
[1750901301432,6.9324,144.16,144.1,3.48219483]
[1750901302337,41.732,144.17,144.1,3.48219483]
[1750901302533,4.5774,144.2,144.15,6.9324]
[1750901302733,5.54033503,144.19,144.15,6.9324]
[1750901302935,4.5774,144.2,144.15,6.9324]
[1750901303127,5.53967424,144.19,144.15,6.9324]
[1750901303326,4.5774,144.2,144.15,6.9324]
[1750901303530,12.47017376,144.19,144.15,6.9324]
[1750901303829,5.58340527,144.18,144.15,6.9324]
[1750901304035,6.9313,144.18,144.15,6.9324]
[1750901304534,6.931,144.19,144.15,6.9324]
[1750901304732,5.58260161,144.18,144.15,6.9324]
[1750901304932,6.931,144.19,144.15,6.9324]
[1750901305134,5.58260161,144.18,144.14,10.41539483]
[1750901305321,4.5774,144.2,144.14,10.41539483]
[1750901305526,5.58035296,144.19,144.14,3.48219483]
[1750901305736,5.58035296,144.18,144.14,3.48219483]
[1750901305935,8.05959483,144.2,144.14,3.48219483]
[1750901306130,5.58230796,144.19,144.14,3.48219483]
[1750901306325,12.51380796,144.18,144.15,6.9327]
[1750901306530,5.58230796,144.17,144.15,6.9327]
[1750901306726,6.9315,144.18,144.15,6.9327]
[1750901306927,5.60352105,144.17,144.15,6.9327]
[1750901307122,6.9315,144.18,144.15,6.9327]
[1750901307324,5.60175608,144.17,144.15,6.9327]
[1750901307528,6.9315,144.18,144.15,6.9327]
[1750901307739,5.60365562,144.17,144.15,6.9327]
[1750901307931,14.99039483,144.2,144.14,3.48219483]
[1750901308133,5.60365563,144.19,144.14,3.48219483]
[1750901308335,5.60199349,144.18,144.14,3.48219483]
[1750901308533,9.1768,144.2,144.14,3.48219483]
[1750901308833,12.53504265,144.19,144.16,6.9319]
[1750901309034,5.60414265,144.18,144.16,6.9319]
[1750901309239,6.9309,144.19,144.16,6.9319]
[1750901309425,5.60412675,144.18,144.16,6.9319]
[1750901309736,6.9309,144.19,144.16,6.9319]
[1750901309938,5.60412675,144.18,144.16,6.9319]
[1750901310138,6.9309,144.19,144.16,6.9319]
[1750901310343,5.60251675,144.18,144.17,6.9318]
[1750901311240,5.60251675,144.18,144.16,10.41439483]
[1750901311538,34.78,144.21,144.16,10.41439483]
[1750901311741,12.53237144,144.2,144.16,10.41439483]
[1750901312038,5.60167144,144.19,144.16,10.41439483]
[1750901312234,5.60167144,144.18,144.17,6.9318]
[1750901312840,6.9307,144.2,144.17,6.9318]
[1750901313036,5.60020929,144.19,144.18,6.9313]
[1750901313240,37.1395,144.24,144.18,3.48219483]
[1750901313436,5.59747514,144.23,144.18,3.48219483]
[1750901313648,5.59747514,144.22,144.18,3.48219483]
[1750901313941,5.59747514,144.21,144.18,3.48219483]
[1750901314141,37.1395,144.24,144.18,3.48219483]
[1750901314439,5.59590504,144.23,144.18,3.48219483]
[1750901314739,5.59590504,144.22,144.18,3.48219483]
[1750901314936,5.59590504,144.21,144.18,3.48219483]
[1750901315240,6.9292,144.23,144.19,6.9305]
[1750901315432,5.59533747,144.22,144.19,6.9305]
[1750901315634,5.59533747,144.21,144.19,6.9305]
[1750901315928,5.59533747,144.21,144.18,3.48219483]
[1750901315929,20.85,144.34,144.18,3.48219483]
[1750901316136,4.96089753,144.29,144.23,3.48219483]
[1750901316330,5.60475193,144.28,144.26,6.9271]
[1750901316532,4.6275,144.33,144.25,3.48219483]
[1750901316742,8.10969483,144.33,144.26,34.7]
[1750901316938,6.9254,144.31,144.26,41.6273]
[1750901317239,34.7,144.3,144.22,34.7]
[1750901317540,34.7,144.3,144.23,3.48219483]
[1750901317843,34.7,144.3,144.25,3.48219483]
[1750901318143,41.6265,144.3,144.25,10.41059483]
[1750901318437,5.60650984,144.29,144.25,10.41059483]
[1750901318642,5.60650984,144.28,144.25,10.41059483]
[1750901318846,41.6265,144.3,144.26,6.9278]
[1750901318847,34.7,144.3,144.26,6.9278]
[1750901319036,5.60608556,144.29,144.26,6.9278]
[1750901319239,42.78969483,144.33,144.25,3.48219483]
[1750901319439,5.60038273,144.32,144.27,3.48219483]
[1750901319638,4.95463109,144.34,144.26,34.68]
[1750901319954,1.9247988,144.37,144.33,3.48219483]
[1750901320237,5.43099953,144.44,144.36,3.48219483]
[1750901320432,5.41742455,144.43,144.38,3.48219483]
[1750901320635,5.41726365,144.42,144.36,10.40539483]
[1750901320833,10.361574,144.41,144.24,602.2709945]
[1750901321045,10.361574,144.4,144.25,43.5671]
[1750901321337,10.35462501,144.39,144.26,38.82]
[1750901321542,5.41826591,144.38,144.34,6.9238]
[1750901321750,38.82,144.4,144.33,3.45182304]
[1750901322044,38.8,144.43,144.34,3.45182304]
[1750901322235,5.40103576,144.42,144.38,3.45182304]
[1750901322433,43.5218,144.45,144.38,3.45182304]
[1750901322636,5.40131443,144.44,144.41,6.9207]
[1750901322945,43.5218,144.45,144.4,3.45182304]
[1750901323143,4.7218,144.45,144.35,62.0]
[1750901323344,3.45182304,144.43,144.35,3.45182304]
[1750901323541,4.7218,144.45,144.34,38.8]
[1750901323844,4.92524183,144.49,144.43,3.45182304]
[1750901324043,5.39055575,144.48,144.43,3.45182304]
[1750901324245,4.92524183,144.49,144.41,38.8]
[1750901324440,5.38101031,144.48,144.43,3.45182304]
[1750901324748,5.38116814,144.47,144.41,3.45182304]
[1750901324942,4.92524183,144.49,144.41,3.45182304]
[1750901325139,4.92524183,144.49,144.38,38.78]
[1750901325140,5.3811713,144.48,144.43,3.45182304]
[1750901325444,5.3811713,144.48,144.39,2.2519]
[1750901325445,7.1234,144.5,144.45,3.45182304]
[1750901326244,4.7361,144.5,144.47,6.918]
[1750901326441,4.7361,144.5,144.45,3.45182304]
[1750901326639,4.7361,144.5,144.41,3.45182304]
[1750901326640,49.21487752,144.49,144.41,3.45182304]
[1750901326937,3.45182304,144.47,144.39,5.70372304]
[1750901327335,5.35869686,144.46,144.39,3.45182304]
[1750901327646,5.77222304,144.48,144.41,3.45182304]
[1750901327942,12.68982304,144.48,144.41,3.45182304]
[1750901328141,5.3581706,144.47,144.41,3.45182304]
[1750901328344,2.3204,144.48,144.41,3.45182304]
[1750901328541,5.35336163,144.47,144.41,3.45182304]
[1750901328742,3.45182304,144.47,144.39,3.45182304]
[1750901328946,12.27228898,144.46,144.4,6.921]
[1750901329147,7.21173256,144.48,144.43,3.45182304]
[1750901329338,2.3984,144.5,144.42,40.38]
[1750901329537,2.3984,144.5,144.44,3.45182304]
[1750901330036,5.34855228,144.49,144.44,3.45182304]
[1750901330240,2.3984,144.5,144.44,3.45182304]
[1750901330648,5.34400651,144.49,144.44,3.45182304]
[1750901330946,2.3845,144.56,144.48,3.45182304]
[1750901331146,6.9152,144.53,144.48,10.36902304]
[1750901331345,5.33650578,144.54,144.48,3.45182304]
[1750901331645,2.2811,144.55,144.47,40.38]
[1750901331938,5.33640692,144.54,144.47,43.83182304]
[1750901332141,2.2811,144.55,144.51,6.9159]
[1750901332350,638.76,144.58,144.5,5.73842321]
[1750901332537,5.33083599,144.57,144.5,5.73842321]
[1750901332739,5.33083599,144.56,144.5,5.73842321]
[1750901332938,5.33073724,144.57,144.5,5.73842321]
[1750901333149,5.32603479,144.57,144.48,2.402]
[1750901333344,40.36,144.61,144.53,5.73842321]
[1750901333645,5.32525305,144.6,144.56,6.9136]
[1750901333846,5.32525305,144.59,144.53,5.73842321]
[1750901334043,5.32525305,144.58,144.51,40.36]
[1750901334346,45.68525305,144.57,144.49,5.73842321]
[1750901334546,40.36,144.57,144.49,5.73842321]
[1750901335237,47.2732,144.57,144.49,5.73842321]
[1750901335944,40.36,144.58,144.51,5.73842321]
[1750901336149,40.36,144.59,144.51,5.73842321]
[1750901336444,46.09842321,144.59,144.5,5.73842321]
[1750901336846,46.09842321,144.59,144.48,42.762]
[1750901337043,46.09842321,144.59,144.5,5.73842321]
[1750901337242,6.9138,144.56,144.5,5.73842321]
[1750901337750,46.09842321,144.59,144.5,5.73842321]
[1750901338041,40.36,144.59,144.5,5.73842321]
[1750901338642,47.2724,144.59,144.52,5.73842321]
[1750901339041,47.2724,144.59,144.52,46.09842321]
[1750901339537,6.9124,144.59,144.52,46.09842321]
[1750901339740,7.0666,144.63,144.59,6.9122]
[1750901339946,42.04,144.69,144.59,5.73842321]
[1750901340258,5.73842321,144.68,144.59,5.73842321]
[1750901340544,5.73842321,144.68,144.58,2.2688]
[1750901340545,5.73842321,144.67,144.57,47.77842321]
[1750901340746,5.73842321,144.65,144.55,5.73842321]
[1750901340950,5.73842321,144.62,144.54,44.3088]
[1750901341147,5.73842321,144.62,144.54,42.04]
[1750901341348,2.4234,144.61,144.54,42.04]
[1750901341549,2.4234,144.61,144.55,6.9138]
[1750901341754,6.9127,144.59,144.52,603.35842321]
[1750901342148,2.4234,144.61,144.52,603.35842321]
[1750901342448,9.3351,144.61,144.52,603.35842321]
[1750901342752,42.04,144.64,144.56,5.73842321]
[1750901343057,42.04,144.64,144.58,5.73842321]
[1750901343746,42.04,144.64,144.6,6.9114]
[1750901344152,9.3329,144.65,144.58,5.73842321]
[1750901344346,9.3329,144.65,144.6,6.9115]
[1750901344651,2.4234,144.65,144.58,5.73842321]
[1750901344953,13.8074,144.78,144.58,5.73842321]
[1750901344954,597.5,144.86,144.64,5.72675332]
[1750901345156,2.2901,144.77,144.69,5.72332637]
[1750901345353,2.2901,144.77,144.69,47.8]
[1750901345650,2.2768,144.76,144.69,53.52498067]
[1750901345855,2.2318,144.8,144.74,5.72498067]
[1750901346047,2.2318,144.8,144.69,47.8]
[1750901346359,7.95678067,144.8,144.71,5.72498067]
[1750901346657,5.72498067,144.84,144.7,5.72498067]
[1750901346957,9.138,144.84,144.75,5.72498067]
[1750901347360,2.2372,144.84,144.69,47.8]
[1750901347653,2.2372,144.84,144.73,6.9052]
[1750901347858,2.2372,144.84,144.7,5.72498067]
[1750901348056,5.72357075,144.79,144.69,53.52357075]
[1750901348258,2.455,144.78,144.69,47.8]
[1750901348451,6.9043,144.76,144.69,47.8]
[1750901348851,2653.8,145.12,144.74,5.72365039]
[1750901349050,50.12,144.93,144.75,57.1108]
[1750901349251,50.12,144.93,144.81,6.9017]
[1750901349252,8.15545039,144.9,144.81,6.9017]
[1750901349561,5.72365039,144.89,144.8,5.72365039]
[1750901349852,6.8998,144.86,144.8,5.72365039]
[1750901350060,55.7605988,144.88,144.76,50.12]
[1750901350257,5.72365039,144.86,144.76,55.84365039]
[1750901350562,2.2992,144.85,144.78,5.72365039]
[1750901351260,55.7605988,144.88,144.78,62.0]
[1750901351558,55.7605988,144.88,144.81,6.9018]
[1750901351753,5.6405988,144.88,144.84,5.72365039]
[1750901351960,5.6405988,144.88,144.82,50.1]
[1750901352161,5.6405988,144.88,144.87,5.72365039]
[1750901352352,5.6405988,144.88,144.83,7.1205]
[1750901352549,5.6405988,144.88,144.87,5.72365039]
[1750901352755,5.6405988,144.88,144.85,5.71071838]
[1750901353651,5.6405988,144.88,144.83,7.1205]
[1750901353955,5.6405988,144.88,144.82,50.1]
[1750901354260,5.6405988,144.88,144.78,57.2501]
[1750901355356,8.75839427,144.86,144.74,50.08]
[1750901355555,6.9022,144.81,144.75,6.9043]
[1750901355761,50.08,144.84,144.74,50.08]
[1750901357160,6.9022,144.81,144.76,6.9041]
[1750901357962,50.08,144.84,144.74,50.08]
[1750901358351,50.08,144.84,144.74,56.9851]
[1750901358561,6.9027,144.8,144.74,50.08]
[1750901359069,50.08,144.84,144.76,8.76283107]
[1750901359764,50.08,144.84,144.75,8.76283107]
[1750901360969,6.9012,144.83,144.78,6.9032]
[1750901361363,6.9018,144.82,144.77,6.9037]
[1750901362164,6.9009,144.83,144.78,6.9032]
[1750901362567,50.08,144.84,144.74,58.84283107]
[1750901363466,50.08,144.84,144.74,50.08]
[1750901364469,5.13849958,144.83,144.74,50.08]
[1750901364667,50.08,144.84,144.75,8.76283107]
[1750901364867,4.76,144.85,144.75,8.76283107]
[1750901365264,4.76,144.85,144.78,6.9032]
[1750901365967,4.76,144.85,144.75,8.76283107]
[1750901366569,4.76,144.85,144.74,50.08]
[1750901366570,17.20936197,145.06,144.78,8.76283107]
[1750901366761,27.39794445,190.25,144.73,604.0652]
[1750901366762,52.347,144.91,144.79,50.06]
[1750901366965,52.347,144.91,144.81,8.76283107]
[1750901367366,61.1030683,144.91,144.79,58.8160683]
[1750901367570,61.1030683,144.91,144.79,50.06]
[1750901367873,2.4382,144.87,144.81,6.9015]
[1750901369167,2.4382,144.87,144.79,50.06]
[1750901369369,8.7560683,144.85,144.76,159.86]
[1750901369568,6.9018,144.82,144.78,6.9032]
[1750901370169,2.3515,144.84,144.76,159.86]
[1750901370971,2.3515,144.84,144.74,58.8160683]
[1750901371678,6.9014,144.82,144.78,6.9028]
[1750901373478,2.3515,144.84,144.74,58.8160683]
[1750901373874,2.3515,144.84,144.74,58.82186029]
[1750901374082,2.3515,144.84,144.74,50.06]
[1750901374269,8.76186029,144.83,144.74,50.06]
[1750901374474,8.76538063,144.83,144.74,50.06]
[1750901374880,13.61676839,144.83,144.74,50.06]
[1750901375082,6.9033,144.78,144.74,56.9649]
[1750901375374,2.3515,144.84,144.74,50.06]
[1750901375579,4.86648017,144.83,144.74,50.06]
[1750901375777,2.3515,144.84,144.74,50.06]
[1750901375969,4.86190931,144.83,144.74,50.06]
[1750901376179,4.86759837,144.82,144.74,50.06]
[1750901376379,6.9031,144.79,144.75,6.9043]
[1750901376581,6.9031,144.79,144.74,50.06]
[1750901376582,2.3515,144.84,144.74,55.7810061]
[1750901376784,54.92759759,144.83,144.74,55.7810061]
[1750901376981,6.9022,144.81,144.74,55.7810061]
[1750901377376,6.903,144.79,144.74,50.06]
[1750901377983,6.9034,144.78,144.74,50.06]
[1750901378179,6.9034,144.78,144.69,159.46]
[1750901378180,5.72121806,144.8,144.7,50.48]
[1750901378381,4.88038495,144.79,144.7,50.48]
[1750901378580,50.06,144.83,144.71,5.72121806]
[1750901378877,5.72121806,144.81,144.71,5.72121806]
[1750901379083,6.9029,144.79,144.75,6.9044]
[1750901379278,4.88038467,144.78,144.75,6.9044]
[1750901379483,6.9035,144.78,144.74,6.905]
[1750901380184,4.89436158,144.77,144.74,6.905]
[1750901380381,6.9035,144.78,144.74,6.905]
[1750901380588,4.89436159,144.77,144.74,6.905]
[1750901380790,6.9035,144.78,144.74,6.905]
[1750901380986,4.8805538,144.77,144.74,6.905]
[1750901381195,4.88851257,144.76,144.75,6.9047]
[1750901382684,4.88851257,144.79,144.76,6.9041]
[1750901382987,11.85641431,144.8,144.76,6.9041]
[1750901383188,9.57062768,144.79,144.76,6.9041]
[1750901383387,4.61681337,144.78,144.77,6.9036]
[1750901384290,9.5952204,144.78,144.77,6.9036]
[1750901385785,4.61681337,144.78,144.77,6.9036]
[1750901386193,9.62173015,144.78,144.77,6.9036]
[1750901386991,9.67060438,144.78,144.77,6.9036]
[1750901388789,9.67060438,144.78,144.73,5.72121806]
[1750901388991,9.67173945,144.77,144.73,5.72121806]
[1750901389289,6.9028,144.79,144.7,55.2366]
[1750901389496,9.6733256,144.78,144.72,5.72121806]
[1750901389684,4.66681705,144.77,144.72,5.72121806]
[1750901389887,6.9027,144.8,144.72,5.72121806]
[1750901390089,15.5981983,144.79,144.72,5.72121806]
[1750901390283,9.67332848,144.78,144.74,5.72121806]
[1750901390489,4.66681715,144.77,144.74,5.72121806]
[1750901390690,5.84279429,144.8,144.77,6.9037]
[1750901390992,9.67389874,144.79,144.77,6.9037]
[1750901391199,4.66709227,144.78,144.77,6.9037]
[1750901391794,5.6405988,144.88,144.76,54.44121806]
[1750901391998,6.8999,144.85,144.78,5.72121806]
[1750901392193,10.84786543,144.84,144.78,54.44121806]
[1750901392395,5.00557379,144.83,144.78,54.44121806]
[1750901392595,6.8997,144.86,144.82,6.9013]
[1750901392795,10.85559289,144.85,144.82,6.9013]
[1750901392994,10.85559289,144.84,144.82,6.9013]
[1750901393300,5.00540181,144.83,144.82,6.9013]
[1750901394191,6.8997,144.86,144.82,6.9013]
[1750901394397,10.7756369,144.85,144.82,6.9013]
[1750901394605,5.00670112,144.84,144.82,6.9013]
[1750901394797,6.8997,144.86,144.82,6.9013]
[1750901394999,10.77559078,144.85,144.82,6.9013]
[1750901395200,5.00670112,144.84,144.82,6.9013]
[1750901395497,5.00670112,144.83,144.82,6.9013]
[1750901396100,5.6405988,144.88,144.84,6.9003]
[1750901396289,5.6405988,144.88,144.82,5.7154411]
[1750901396290,5.21041319,144.87,144.82,5.7154411]
[1750901396495,5.21041319,144.86,144.82,5.7154411]
[1750901396694,5.6405988,144.88,144.82,5.7154411]
[1750901396695,5.21041319,144.85,144.82,5.7154411]
[1750901396898,5.6405988,144.88,144.83,6.9005]
[1750901397109,5.21056615,144.87,144.83,6.9005]
[1750901397408,5.21056615,144.86,144.79,4.6845]
[1750901397593,5.21056615,144.85,144.79,10.3999411]
[1750901397795,5.6405988,144.88,144.81,5.7154411]
[1750901397996,5.21024721,144.87,144.81,5.7154411]
[1750901398196,5.21024721,144.86,144.81,5.7154411]
[1750901398501,6.8993,144.87,144.81,5.7154411]
[1750901398700,5.21287299,144.86,144.83,6.9008]
[1750901398902,6.8993,144.87,144.83,6.9008]
[1750901400305,6.8995,144.86,144.83,6.9008]
[1750901400504,5.6405988,144.88,144.8,5.7154411]
[1750901400912,5.6405988,144.88,144.79,4.6845]
[1750901401205,5.6405988,144.88,144.85,5.7154411]
[1750901401407,5.6405988,144.88,144.87,6.899]
[1750901401703,5.6405988,144.88,144.87,12.6144411]
[1750901402105,5.6405988,144.88,144.83,48.72]
[1750901403112,5.6405988,144.88,144.82,6.9012]
[1750901403404,5.6405988,144.88,144.79,61.3674411]
[1750901403613,5.6405988,144.88,144.81,5.7154411]
[1750901403909,5.6405988,144.88,144.83,5.7154411]
[1750901404301,5.6405988,144.88,144.86,6.899]
[1750901404903,5.6405988,144.88,144.87,6.899]
[1750901405114,5.6405988,144.88,144.83,5.7154411]
[1750901405306,5.6405988,144.88,144.8,62.0]
[1750901405506,12.5393988,144.88,144.83,6.9006]
[1750901405703,12.5393988,144.88,144.81,5.7154411]
[1750901405908,5.6405988,144.88,144.81,5.7154411]
[1750901406597,5.6405988,144.88,144.83,5.7154411]
[1750901407005,5.6405988,144.88,144.85,6.8995]
[1750901407206,5.6405988,144.88,144.83,5.7154411]
[1750901407408,5.6405988,144.88,144.84,5.71212401]
[1750901407712,5.6405988,144.88,144.85,6.8996]
[1750901408103,5.6405988,144.88,144.84,5.71212401]
[1750901408310,5.6405988,144.88,144.86,5.71212401]
[1750901408711,5.6405988,144.88,144.87,6.899]
[1750901409208,9.88e-05,144.88,144.87,6.899]
[1750901409412,5.19329163,144.96,144.87,5.70872639]
[1750901409712,48.7,144.97,144.89,5.70872639]
[1750901410015,10.90216217,144.96,144.86,8.05842639]
[1750901410211,5.19138904,144.96,144.88,5.70872639]
[1750901410416,48.7,144.97,144.9,5.70872639]
[1750901410917,48.7,144.97,144.92,6.8962]
[1750901411216,6.8958,144.94,144.86,2.3497]
[1750901411510,6.8958,144.94,144.9,6.8975]
[1750901411914,6.8961,144.93,144.87,5.70872639]
[1750901412305,54.40872639,144.97,144.87,5.70872639]
[1750901412700,48.7,144.97,144.89,6.898]
[1750901412905,59.59342679,144.97,144.89,6.898]
[1750901413103,5.70872639,144.95,144.87,5.70872639]
[1750901413708,6.8969,144.92,144.87,5.70872639]
[1750901413905,6.8969,144.92,144.87,12.60732639]
[1750901414105,5.70872639,144.95,144.85,48.7]
[1750901414314,5.70872639,144.95,144.73,21.61143485]
[1750901414315,5.70872639,144.91,144.83,6.9006]
[1750901414613,54.40872639,144.91,144.83,6.9006]
[1750901414810,4.6609,144.9,144.81,56.74162639]
[1750901415005,5.70872639,144.89,144.81,51.0329]
[1750901415310,12.61822639,144.9,144.81,56.74162639]
[1750901416618,6.9095,144.9,144.81,56.74162639]
[1750901416914,12.61822639,144.9,144.81,51.0329]
[1750901417116,12.61822639,144.9,144.81,48.7]
[1750901417518,5.70872639,144.88,144.81,55.6017]
[1750901417917,5.70872639,144.88,144.81,48.7]
[1750901418113,6.9007,144.84,144.81,48.7]
[1750901418313,5.70872639,144.84,144.75,5.70872639]
[1750901418524,6.9015,144.82,144.78,6.9032]
[1750901419413,54.40872639,144.86,144.76,5.70872639]
[1750901419818,54.40872639,144.86,144.74,50.941]
[1750901419819,6.9022,144.81,144.77,6.9037]
[1750901420010,54.40872639,144.86,144.75,5.70872639]
[1750901420211,6.9017,144.82,144.75,5.70872639]
[1750901420421,54.40872639,144.86,144.75,5.70872639]
[1750901420809,54.40872639,144.86,144.77,6.9037]
[1750901421119,5.70872639,144.84,144.74,50.941]
[1750901421315,5.70872639,144.84,144.74,56.64972639]
[1750901421522,6.9027,144.8,144.76,6.9041]
[1750901422120,6.9028,144.79,144.76,6.9041]
[1750901422421,6.9028,144.79,144.75,6.9045]
[1750901423417,52.72872639,144.82,144.74,48.7]
[1750901423926,6.9031,144.79,144.75,6.9046]
[1750901424221,52.72872639,144.82,144.74,48.7]
[1750901424620,47.02,144.82,144.75,5.70872639]
[1750901424820,47.02,144.86,144.77,5.70872639]
[1750901425120,47.02,144.86,144.79,5.70872639]
[1750901425518,6.9009,144.83,144.79,6.9023]
[1750901425823,47.02,144.86,144.77,5.70872639]
[1750901426231,6.9008,144.84,144.77,5.70872639]
[1750901426525,52.72872639,144.86,144.77,5.70872639]
[1750901426721,6.9019,144.81,144.77,6.9036]
[1750901427029,5.70872639,144.84,144.74,48.7]
[1750901427229,7.0014,144.83,144.74,48.7]
[1750901427527,47.02,144.82,144.74,48.7]
[1750901427826,6.9023,144.8,144.75,6.9043]
[1750901428121,47.02,144.82,144.74,48.7]
[1750901428427,5.70872639,144.81,144.73,6.9053]
[1750901428923,6.9042,144.76,144.71,5.70872639]
[1750901429125,6.9042,144.76,144.7,643.02]
[1750901429326,47.02,144.78,144.7,47.02]
[1750901429725,2.3259,144.77,144.7,47.02]
[1750901430229,6.9051,144.75,144.71,6.9063]
[1750901430621,2.3259,144.77,144.7,47.02]
[1750901430825,6.905,144.75,144.7,47.02]
[1750901431622,2.309,144.76,144.7,47.02]
[1750901432022,4.6473,144.76,144.67,14.89482639]
[1750901432326,6.9068,144.71,144.67,6.9084]
[1750901432824,47.04,144.74,144.67,6.9084]
[1750901434123,47.04,144.74,144.66,6.9089]
[1750901434124,6.907,144.71,144.66,6.9089]
[1750901434327,5.70872639,144.73,144.64,47.04]
[1750901434524,5.70872639,144.71,144.64,47.04]
[1750901434720,5.70872639,144.71,144.64,53.9496]
[1750901434930,5.70872639,144.71,144.56,596.32]
[1750901434931,47.04,144.7,144.52,17.28914788]
[1750901435230,5.70872639,144.67,144.56,109.04]
[1750901435425,5.70872639,144.67,144.57,5.70872639]
[1750901437034,6.9096,144.65,144.59,6.9122]
[1750901437232,6.9096,144.65,144.57,5.70872639]
[1750901437431,5.70872639,144.67,144.57,5.70872639]
[1750901437831,5.70872639,144.65,144.58,6.9127]
[1750901438038,52.74872639,144.65,144.58,6.9127]
[1750901438339,52.74872639,144.65,144.56,52.74872639]
[1750901438633,52.74872639,144.65,144.56,47.04]
[1750901438834,52.74872639,144.65,144.57,5.70872639]
[1750901439036,47.04,144.65,144.57,5.70872639]
[1750901439932,53.9498,144.65,144.6,6.9117]
[1750901440132,47.04,144.65,144.57,5.70872639]
[1750901440528,6.9101,144.64,144.57,5.70872639]
[1750901441035,6.9101,144.64,144.59,6.912]
[1750901441737,6.9105,144.63,144.59,6.912]
[1750901441936,47.04,144.65,144.57,5.70872639]
[1750901442437,52.74872639,144.65,144.57,5.70872639]
[1750901442737,52.74872639,144.65,144.56,47.04]
[1750901442738,52.74872639,144.65,144.56,52.74872639]
[1750901442938,6.9101,144.64,144.59,6.9123]
[1750901443236,6.9101,144.64,144.56,52.74872639]
[1750901443631,59.65832639,144.65,144.56,52.74872639]
[1750901443830,53.9496,144.65,144.56,52.74872639]
[1750901444124,6.91,144.64,144.6,6.9115]
[1750901444324,52.74872639,144.65,144.56,47.04]
[1750901444727,6.9113,144.62,144.56,47.04]